bitfinex/quotes_ETHUSD_20250827
["timestamp","ask_amount","ask_price","bid_price","bid_amount"]
[1756253346324,0.002,4597.1,4597.0,4.82591285]
[1756253346525,0.002,4597.1,4597.0,8.97711285]
[1756253351062,0.002,4597.1,4597.0,8.52091285]
[1756253351564,0.7525,4597.1,4597.0,0.61]
[1756253351724,2.92778441,4597.1,4597.0,0.61]
[1756253351932,0.7525,4597.1,4597.0,0.61]
[1756253352131,2.92778441,4597.1,4597.0,0.61]
[1756253352329,6.74680076,4597.1,4597.0,0.61]
[1756253352868,5.17533826,4597.0,4596.8,3.694]
[1756253353029,2.17537905,4596.9,4596.8,3.694]
[1756253353230,0.7505,4596.9,4596.8,3.694]
[1756253353967,2.92587905,4596.9,4596.8,3.694]
[1756253354673,2.92587905,4596.9,4596.5,1e-08]
[1756253354876,0.4358,4596.8,4596.6,3.694]
[1756253355350,0.002,4597.1,4596.7,0.3113]
[1756253355948,0.002,4597.1,4597.0,2.83533173]
[1756253356159,0.002,4597.1,4597.0,4.37575331]
[1756253356363,0.002,4597.1,4597.0,4.354]
[1756253356753,0.3167,4597.1,4597.0,4.40793734]
[1756253357071,0.7525,4597.1,4597.0,3.694]
[1756253357461,0.7525,4597.1,4596.6,3.694]
[1756253357665,2.17538666,4596.9,4596.7,3.694]
[1756253357848,0.3147,4596.8,4596.7,3.694]
[1756253358042,0.7505,4596.8,4596.7,3.694]
[1756253358955,0.7505,4596.8,4596.1,2.78573902]
[1756253359264,2.49012638,4596.8,4596.7,3.694]
[1756253359572,2.17552103,4596.6,4596.5,3.69400001]
[1756253359890,3.7505,4596.6,4596.5,3.69400001]
[1756253360564,5.92602103,4596.6,4596.5,3.69400001]
[1756253360957,5.92602103,4596.6,4596.5,1e-08]
[1756253361853,6.73616737,4596.6,4596.5,1e-08]
[1756253371097,6.82342037,4596.6,4596.5,1e-08]
[1756253371806,6.38762037,4596.6,4596.5,1e-08]
[1756253371971,3.0,4596.6,4596.5,0.31320001]
[1756253373095,0.002,4597.1,4596.5,0.77350001]
[1756253373266,0.002,4597.1,4596.6,0.02175521]
[1756253373463,2.17728916,4597.1,4596.7,0.44892552]
[1756253373664,0.002,4597.1,4597.0,0.3132]
[1756253374192,0.2955,4597.1,4596.5,1e-08]
[1756253374369,2.17546738,4596.8,4596.5,1e-08]
[1756253374997,0.2935,4596.6,4596.5,1e-08]
[1756253375925,2.17730886,4597.1,4596.5,1e-08]
[1756253375926,2.17732806,4597.1,4596.5,0.31320001]
[1756253376431,2.17533201,4597.0,4596.5,0.31320001]
[1756253376728,2.17728862,4597.1,4596.5,0.31320001]
[1756253376928,0.002,4597.1,4596.5,1.0987859]
[1756253377532,2.17728614,4597.1,4596.5,1.0987859]
[1756253378206,0.002,4597.1,4596.5,1.0987859]
[1756253378815,2.17729084,4597.1,4596.5,1.0987859]
[1756253379645,2.17533189,4597.0,4596.5,1.0987859]
[1756253379810,2.17533189,4597.0,4596.6,3.693]
[1756253379811,0.4506,4597.0,4596.6,3.693]
[1756253380019,0.2935,4596.7,4596.6,3.693]
[1756253380395,2.1773102,4597.1,4596.6,4.0062]
[1756253380707,0.47216257,4597.0,4596.6,3.693]
[1756253380894,0.2935,4596.7,4596.6,3.693]
[1756253381308,0.7441,4596.7,4596.6,3.693]
[1756253381632,5.9195737,4596.7,4596.6,3.693]
[1756253384298,2.17552103,4596.6,4596.5,1e-08]
[1756253384504,2.62612103,4596.6,4596.5,1e-08]
[1756253384731,2.91962103,4596.6,4596.5,1e-08]
[1756253384914,5.17548041,4596.7,4596.5,1e-08]
[1756253385336,5.17548041,4596.7,4596.5,0.31320001]
[1756253385805,5.17547566,4596.7,4596.5,0.31320001]
[1756253386014,3.0,4596.7,4596.5,1e-08]
[1756253386213,2.17552103,4596.6,4596.5,1e-08]
[1756253387140,2.46902103,4596.6,4596.5,1e-08]
[1756253387344,2.91962103,4596.6,4596.5,1e-08]
[1756253388318,0.7441,4596.6,4596.5,1e-08]
[1756253388524,3.0,4596.7,4596.5,1e-08]
[1756253388761,3.0,4596.7,4596.5,0.31320001]
[1756253388961,0.002,4597.1,4596.6,0.4603]
[1756253389279,0.002,4597.1,4596.7,3.692]
[1756253389568,0.002,4597.1,4597.0,0.3132]
[1756253392727,0.002,4597.1,4597.0,0.7735]
[1756253393115,0.002,4597.1,4597.0,2.94883173]
[1756253394048,0.002,4597.1,4597.0,0.7735]
[1756253394250,0.002,4597.1,4597.0,1.19483195]
[1756253394422,0.002,4597.1,4597.0,0.7735]
[1756253394751,0.2955,4597.1,4596.8,0.66]
[1756253395259,0.2955,4597.1,4596.9,3.691]
[1756253396049,0.2955,4597.1,4597.0,3.691]
[1756253396637,0.7461,4597.1,4597.0,3.691]
[1756253397037,2.92138441,4597.1,4597.0,3.691]
[1756253397242,2.47078441,4597.1,4596.8,3.691]
[1756253397853,0.7461,4597.1,4596.8,3.691]
[1756253398161,2.92138951,4597.1,4596.8,3.691]
[1756253398451,2.92139694,4597.1,4596.8,3.691]
[1756253398651,0.7461,4597.1,4596.8,3.691]
[1756253399665,0.2955,4597.1,4596.8,3.691]
[1756253400081,0.002,4597.1,4597.0,0.2963]
[1756253401239,0.002,4597.1,4596.8,0.58665682]
[1756253401441,0.002,4597.1,4596.9,3.681]
[1756253402981,0.002,4597.1,4597.0,0.2963]
[1756253403884,0.002,4597.1,4597.0,3.58673173]
[1756253404045,0.002,4597.1,4597.0,3.60848504]
[1756253404769,0.002,4597.1,4597.0,3.58673173]
[1756253404942,0.002,4597.1,4597.0,4.54192652]
[1756253405138,0.002,4597.1,4597.0,1.25149479]
[1756253405457,0.002,4597.1,4597.0,2.47163173]
[1756253405641,0.002,4597.1,4597.0,3.58673173]
[1756253405840,0.002,4597.1,4597.0,3.60848504]
[1756253406041,0.002,4597.1,4597.0,3.58673173]
[1756253407238,0.002,4597.1,4597.0,3.60848504]
[1756253407638,0.002,4597.1,4597.0,4.54410087]
[1756253407843,0.002,4597.1,4597.0,5.60266914]
[1756253409077,0.002,4597.1,4597.0,3.689]
[1756253409787,0.002,4597.1,4597.0,3.9853]
[1756253410150,2.17552103,4596.6,4596.5,1e-08]
[1756253410581,5.90872103,4596.6,4596.5,1e-08]
[1756253410752,7.0599092,4596.6,4596.5,1e-08]
[1756253414794,7.1471632,4596.6,4596.5,1e-08]
[1756253416662,5.46502103,4596.6,4596.5,1e-08]
[1756253416862,5.90872103,4596.6,4596.5,1e-08]
[1756253419471,0.002,4597.1,4596.5,0.29630001]
[1756253419706,0.002,4597.1,4596.6,0.47685521]
[1756253420007,0.002,4597.1,4596.7,0.44621552]
[1756253420477,0.2895,4596.7,4596.5,3.68900001]
[1756253420682,0.4437,4597.0,4596.5,3.68900001]
[1756253421009,0.002,4597.1,4596.5,3.68900001]
[1756253421177,2.61910154,4596.9,4596.5,3.68900001]
[1756253421618,0.002,4597.1,4596.8,0.2963]
[1756253421921,0.002,4597.1,4596.8,0.74034]
[1756253422086,0.002,4597.1,4597.0,2.17533173]
[1756253422413,0.002,4597.1,4597.0,0.02175331]
[1756253422578,0.002,4597.1,4597.0,2.94848504]
[1756253422774,0.002,4597.1,4597.0,0.77315331]
[1756253422975,0.002,4597.1,4597.0,3.23760437]
[1756253423515,0.002,4597.1,4597.0,3.87585106]
[1756253423713,0.002,4597.1,4597.0,1.70051933]
[1756253424011,0.002,4597.1,4597.0,3.87585106]
[1756253424599,0.002,4597.1,4597.0,1.24541933]
[1756253424805,0.002,4597.1,4597.0,4.93441933]
[1756253425215,0.2915,4597.1,4596.7,1.674]
[1756253425420,0.002,4597.1,4596.8,3.689]
[1756253425822,0.002,4597.1,4597.0,0.2963]
[1756253426323,0.2915,4597.1,4596.7,1.674]
[1756253426488,0.2915,4597.1,4596.8,3.689]
[1756253426684,0.002,4597.1,4596.8,3.689]
[1756253427220,0.002,4597.1,4596.8,4.4065906]
[1756253427518,0.002,4597.1,4597.0,0.2963]
[1756253427919,0.002,4597.1,4597.0,0.7514]
[1756253428287,0.002,4597.1,4597.0,0.7499]
[1756253428711,0.002,4597.1,4597.0,2.92523173]
[1756253428911,0.002,4597.1,4597.0,4.70335992]
[1756253431219,0.002,4597.1,4597.0,4.81215992]
[1756253432414,0.002,4597.1,4597.0,4.35855992]
[1756253433446,0.002,4597.1,4597.0,8.04655992]
[1756253437732,0.002,4597.1,4597.0,5.87122819]
[1756253438231,0.002,4597.1,4597.0,8.04655992]
[1756253440963,0.002,4597.1,4597.0,5.87122819]
[1756253441153,0.002,4597.1,4597.0,8.04655992]
[1756253447676,2.95308441,4597.1,4596.7,1.674]
[1756253447889,6.20670582,4596.8,4596.5,1e-08]
[1756253448170,2.17552103,4596.6,4596.5,1e-08]
[1756253448341,2.49022103,4596.6,4596.5,1e-08]
[1756253448546,6.60565003,4596.6,4596.5,1e-08]
[1756253454836,4.430129,4596.6,4596.5,1e-08]
[1756253455059,0.002,4597.1,4596.6,0.66]
[1756253455259,0.002,4597.1,4596.6,1.0286]
[1756253455651,0.002,4597.1,4596.7,3.686]
[1756253456039,0.002,4597.1,4597.0,0.2901]
[1756253457082,0.7778,4597.1,4597.0,3.686]
[1756253457441,0.002,4597.1,4597.0,3.686]
[1756253458342,0.3093,4597.1,4597.0,3.686]
[1756253458539,1.41250058,4597.1,4596.8,5.359]
[1756253458784,2.17537905,4596.9,4596.8,5.359]
[1756253458947,2.48267905,4596.9,4596.8,5.359]
[1756253459153,0.7589,4596.9,4596.8,5.359]
[1756253459669,1.73835147,4596.9,4596.5,1e-08]
[1756253459970,2.1754737,4596.7,4596.6,2.908]
[1756253460171,5.9343737,4596.7,4596.5,1e-08]
[1756253460376,3.3073,4596.7,4596.6,3.686]
[1756253460962,9.51400582,4596.7,4596.6,3.686]
[1756253461166,0.3073,4596.7,4596.6,3.9965]
[1756253461345,0.002,4597.1,4596.6,4.63546122]
[1756253461545,0.656258,4597.1,4596.6,3.9965]
[1756253461778,0.3073,4596.7,4596.5,1e-08]
[1756253461978,0.3073,4596.7,4596.6,3.686]
[1756253462668,6.20670582,4596.8,4596.5,1e-08]
[1756253462870,6.20670582,4596.8,4596.6,3.9955]
[1756253463384,0.3073,4596.7,4596.5,1e-08]
[1756253463676,2.17552103,4596.6,4596.5,3.68600001]
[1756253463882,0.7589,4596.6,4596.5,3.68600001]
[1756253464580,6.20670582,4596.8,4596.5,3.99650001]
[1756253464798,0.656258,4597.1,4596.6,0.02175521]
[1756253465153,3.0,4597.0,4596.6,0.02175521]
[1756253466276,3.654267,4597.0,4596.6,0.02175521]
[1756253467267,3.654267,4597.0,4596.5,3.68600001]
[1756253467468,6.20670582,4596.8,4596.5,3.68600001]
[1756253467853,0.3073,4596.6,4596.5,1e-08]
[1756253468186,0.3073,4596.6,4596.5,3.68500001]
[1756253468387,0.7589,4596.6,4596.5,3.68500001]
[1756253468558,0.3073,4596.6,4596.5,3.68500001]
[1756253468766,0.7589,4596.6,4596.5,3.68500001]
[1756253469486,6.20670582,4596.8,4596.5,3.68500001]
[1756253470985,0.002,4597.1,4596.7,0.3105]
[1756253471386,0.002,4597.1,4596.7,0.7416]
[1756253471772,0.002,4597.1,4596.9,2.17537171]
[1756253471978,0.002,4597.1,4597.0,3.685]
[1756253472357,0.002,4597.1,4597.0,3.9955]
[1756253472754,0.002,4597.1,4597.0,4.4266]
[1756253473171,0.002,4597.1,4597.0,3.9955]
[1756253473370,0.002,4597.1,4597.0,6.17083173]
[1756253473781,0.002,4597.1,4597.0,7.84383173]
[1756253474091,0.002,4597.1,4597.0,9.54887137]
[1756253474296,0.002,4597.1,4597.0,9.97997137]
[1756253476906,0.002,4597.1,4597.0,10.08877137]
[1756253480823,1e-08,4597.1,4597.0,10.08877137]
[1756253481098,1e-08,4597.1,4597.0,13.08677137]
[1756253481319,1e-08,4597.1,4597.0,8.99567137]
[1756253481889,0.30730001,4597.1,4597.0,6.50983964]
[1756253482101,0.30730001,4597.1,4597.0,1.673]
[1756253482318,0.75890001,4597.1,4597.0,6.016]
[1756253484000,0.75890001,4597.1,4597.0,8.19133173]
[1756253484695,0.75890001,4597.1,4597.0,6.51072569]
[1756253484897,0.75890001,4597.1,4597.0,0.65239396]
[1756253485085,0.75890001,4597.1,4597.0,4.33539396]
[1756253486611,0.30730001,4597.1,4597.0,4.33539396]
[1756253487112,1e-08,4597.1,4597.0,4.33539396]
[1756253487618,0.30730001,4597.1,4597.0,4.33539396]
[1756253488304,1e-08,4597.1,4597.0,6.81882569]
[1756253489016,1e-08,4597.1,4597.0,7.71825386]
[1756253489583,1e-08,4597.1,4597.0,8.37825386]
[1756253489918,1e-08,4597.1,4597.0,8.94105386]
[1756253490706,1e-08,4597.1,4597.0,8.48605386]
[1756253491085,1e-08,4597.1,4597.0,8.94005386]
[1756253491514,1e-08,4597.1,4597.0,9.55005386]
[1756253492021,1e-08,4597.1,4597.0,9.09605386]
[1756253492589,1e-08,4597.1,4597.0,9.55005386]
[1756253493837,1e-08,4597.1,4597.0,9.09605386]
[1756253494723,1e-08,4597.1,4597.0,5.41405386]
[1756253495049,1e-08,4597.1,4597.0,9.09605386]
[1756253495339,0.75950001,4597.1,4597.0,8.12795386]
[1756253495528,0.75950001,4597.1,4597.0,7.22852569]
[1756253495731,0.75950001,4597.1,4597.0,4.20652569]
[1756253496043,0.75950001,4597.1,4597.0,7.88852569]
[1756253496244,0.75950001,4597.1,4597.0,5.05319396]
[1756253496406,0.75950001,4597.1,4597.0,4.94439396]
[1756253496942,0.75950001,4597.1,4597.0,4.33439396]
[1756253497105,0.75950001,4597.1,4597.0,0.65239396]
[1756253497302,0.75950001,4597.1,4597.0,4.33439396]
[1756253497534,0.75950001,4597.1,4597.0,0.65239396]
[1756253497738,0.75950001,4597.1,4597.0,4.33439396]
[1756253498438,0.75950001,4597.1,4597.0,0.65239396]
[1756253498925,0.75950001,4597.1,4597.0,4.33339396]
[1756253499410,0.75950001,4597.1,4597.0,4.33439396]
[1756253499742,2.93478442,4597.1,4597.0,0.65239396]
[1756253499909,7.06645482,4597.1,4597.0,4.33339396]
[1756253503711,4.89117041,4597.1,4597.0,4.33339396]
[1756253504104,4.89117041,4597.1,4597.0,0.65239396]
[1756253504318,7.06645482,4597.1,4597.0,4.33339396]
[1756253504529,3.28880001,4597.1,4597.0,4.33339396]
[1756253505046,3.75950001,4597.1,4597.0,4.33339396]
[1756253505217,3.75950001,4597.1,4597.0,0.65239396]
[1756253505423,5.93478442,4597.1,4597.0,4.33339396]
[1756253505611,5.93478442,4597.1,4597.0,4.33439396]
[1756253505813,7.36645261,4597.1,4597.0,4.33439396]
[1756253506825,5.1911682,4597.1,4597.0,4.33439396]
[1756253507145,4.7204682,4597.1,4597.0,4.33439396]
[1756253507352,3.28880001,4597.1,4597.0,4.33439396]
[1756253507945,0.28880001,4597.1,4597.0,4.33439396]
[1756253509062,0.75950001,4597.1,4597.0,4.33439396]
[1756253510029,0.28880001,4597.1,4597.0,4.33439396]
[1756253510454,1e-08,4597.1,4597.0,4.64249396]
[1756253510671,1e-08,4597.1,4597.0,7.34525051]
[1756253511335,1e-08,4597.1,4597.0,5.16991878]
[1756253511530,1e-08,4597.1,4597.0,4.64249396]
[1756253512386,1e-08,4597.1,4597.0,6.81782569]
[1756253514962,1e-08,4597.1,4597.0,8.04062569]
[1756253516135,1e-08,4597.1,4597.0,3.59752569]
[1756253516331,0.28880001,4597.1,4597.0,4.33439396]
[1756253516535,0.75950001,4597.1,4597.0,4.33439396]
[1756253516769,0.75950001,4597.1,4597.0,4.33339396]
[1756253518168,0.28880001,4597.1,4597.0,6.50872569]
[1756253518970,0.71850001,4597.1,4597.0,4.33339396]
[1756253519277,1e-08,4597.1,4597.0,7.45390292]
[1756253519644,0.29830001,4597.1,4597.0,4.33339396]
[1756253519967,0.72800001,4597.1,4597.0,4.33339396]
[1756253520359,2.90328442,4597.1,4597.0,4.33339396]
[1756253521564,0.29830001,4597.1,4597.0,4.33339396]
[1756253521752,0.72800001,4597.1,4597.0,4.33339396]
[1756253522277,0.29830001,4597.1,4597.0,4.33339396]
[1756253522443,1e-08,4597.1,4597.0,4.62769396]
[1756253523063,0.29830001,4597.1,4597.0,0.65339396]
[1756253523252,0.72800001,4597.1,4597.0,4.33339396]
[1756253524966,9.10999024,4597.1,4597.0,3.681]
[1756253525151,13.02098926,4597.1,4597.0,3.681]
[1756253526491,13.02098926,4597.1,4597.0,0.001]
[1756253526645,13.02098926,4597.1,4597.0,3.681]
[1756253531707,13.02098926,4597.1,4597.0,3.681]
[1756253532411,10.84570485,4597.1,4597.0,3.681]
[1756253532727,9.93470583,4597.1,4597.0,3.681]
[1756253532875,9.20670583,4597.1,4597.0,3.9753]
[1756253533075,9.20670583,4597.1,4597.0,3.681]
[1756253533310,9.50500583,4597.1,4597.0,3.681]
[1756253533610,9.93470583,4597.1,4597.0,3.681]
[1756253533776,9.20670583,4597.1,4597.0,3.681]
[1756253534112,12.10999024,4597.1,4597.0,3.681]
[1756253534408,3.00000001,4597.1,4597.0,0.001]
[1756253535102,3.00000001,4597.1,4597.0,0.2953]
[1756253535307,3.00000001,4597.1,4597.0,0.001]
[1756253535878,3.29830001,4597.1,4597.0,0.001]
[1756253536078,4.67850059,4597.1,4597.0,3.68]
[1756253536285,4.67850059,4597.1,4597.0,0.001]
[1756253536484,3.95050059,4597.1,4597.0,0.001]
[1756253536690,3.00000001,4597.1,4597.0,0.001]
[1756253537209,3.00000001,4597.1,4597.0,0.2953]
[1756253537812,3.72800001,4597.1,4597.0,3.68]
[1756253540113,3.29830001,4597.1,4597.0,3.68]
[1756253540301,3.00000001,4597.1,4597.0,3.68]
[1756253541012,3.29830001,4597.1,4597.0,3.68]
[1756253541183,3.72800001,4597.1,4597.0,3.68]
[1756253541914,5.90328442,4597.1,4597.0,3.68]
[1756253542114,7.11427803,4597.1,4597.0,3.68]
[1756253543815,4.93899362,4597.1,4597.0,3.68]
[1756253544188,7.11427803,4597.1,4597.0,3.68]
[1756253544389,4.93899362,4597.1,4597.0,3.68]
[1756253545085,4.93899362,4597.1,4597.0,0.001]
[1756253545292,2.17552103,4596.6,4596.5,1e-08]
[1756253545616,15.2626354,4596.6,4596.5,1e-08]
[1756253545819,15.9906354,4596.6,4596.5,1e-08]
[1756253546020,16.0778894,4596.6,4596.5,1e-08]
[1756253546222,16.07791445,4596.6,4596.5,1e-08]
[1756253546425,17.46999351,4596.6,4596.5,1e-08]
[1756253547019,2.1757577,4596.1,4595.8,0.02]
[1756253547222,8.38246352,4596.1,4595.8,0.02]
[1756253547523,9.11046352,4596.1,4595.8,0.02]
[1756253547712,10.2390786,4596.1,4595.8,0.02]
[1756253548428,10.8935276,4596.1,4595.8,0.02]
[1756253549323,6.86115482,4596.1,4595.8,0.02]
[1756253549628,9.03691252,4596.1,4595.8,0.02]
[1756253549958,8.38246352,4596.1,4595.8,0.02]
[1756253550124,6.20670582,4596.1,4595.8,0.02]
[1756253550425,6.20670582,4596.1,4595.9,3.678]
[1756253550426,6.51740582,4596.1,4595.9,3.678]
[1756253550618,9.13456352,4596.1,4595.9,3.678]
[1756253550813,9.13456352,4596.1,4596.0,0.3001]
[1756253550814,6.20670582,4596.1,4596.0,0.3001]
[1756253551126,0.34050613,4596.5,4596.0,0.3001]
[1756253551422,3.0,4596.6,4596.0,0.69991]
[1756253551626,5.17555839,4596.6,4596.0,0.3001]
[1756253551827,6.20670582,4596.3,4596.0,0.3001]
[1756253552901,6.64810582,4596.3,4596.1,3.678]
[1756253553110,6.20670582,4596.3,4596.1,3.678]
[1756253553314,6.20670582,4596.3,4596.2,0.2991]
[1756253556226,6.20670582,4596.3,4596.2,3.678]
[1756253556628,3.0,4596.2,4596.0,3.679]
[1756253556825,2.1757577,4596.1,4596.0,3.679]
[1756253557010,2.9278577,4596.1,4596.0,3.679]
[1756253557210,4.51639171,4596.1,4596.0,3.679]
[1756253557411,4.51639171,4596.1,4596.0,0.001]
[1756253560741,4.07499171,4596.1,4596.0,0.001]
[1756253560942,4.51639171,4596.1,4596.0,0.001]
[1756253561313,7.51639171,4596.1,4596.0,0.001]
[1756253561811,8.17083571,4596.1,4596.0,0.001]
[1756253562013,3.654444,4596.1,4596.0,0.001]
[1756253562317,3.0,4596.1,4596.0,0.3001]
[1756253562722,3.0,4596.1,4596.0,3.9781]
[1756253565415,3.0,4596.1,4596.0,3.679]
[1756253565610,3.3107,4596.1,4596.0,0.001]
[1756253565828,4.74798058,4596.1,4596.0,3.679]
[1756253566121,6.92373828,4596.1,4596.0,3.679]
[1756253566648,6.92373828,4596.1,4596.0,0.001]
[1756253567817,4.74798058,4596.1,4596.0,0.001]
[1756253568020,6.92373828,4596.1,4596.0,0.001]
[1756253568722,4.74798058,4596.1,4596.0,0.001]
[1756253568928,6.92373828,4596.1,4596.0,0.001]
[1756253570032,7.01099728,4596.1,4596.0,0.001]
[1756253571524,6.56959728,4596.1,4596.0,0.001]
[1756253572058,7.01099728,4596.1,4596.0,0.001]
[1756253572665,0.087259,4596.1,4596.0,0.3001]
[1756253572955,3.0,4596.2,4596.0,0.3001]
[1756253573128,6.20670582,4596.3,4596.0,0.3001]
[1756253573559,3.0,4596.2,4596.0,0.3001]
[1756253574634,3.0,4596.2,4596.0,0.7663]
[1756253575024,3.0,4596.2,4596.0,0.3001]
[1756253576029,0.002,4596.5,4596.1,0.48795757]
[1756253576229,0.002,4596.5,4596.2,2.17571036]
[1756253576456,0.002,4596.5,4596.4,0.2991]
[1756253576932,0.002,4596.5,4596.4,0.7653]
[1756253577329,0.002,4596.5,4596.4,0.2991]
[1756253577736,0.002,4596.5,4596.4,3.9761]
[1756253580264,0.002,4596.5,4596.4,0.2991]
[1756253580445,0.002,4596.5,4596.4,6.71572569]
[1756253581971,0.002,4596.5,4596.4,3.03972569]
[1756253582159,0.002,4596.5,4596.4,6.71572569]
[1756253582547,0.002,4596.5,4596.4,7.93172569]
[1756253585264,1e-08,4596.5,4596.4,7.93172569]
[1756253585465,1e-08,4596.5,4596.4,10.93172569]
[1756253585663,1e-08,4597.0,4596.9,2.83537905]
[1756253585972,1e-08,4597.0,4596.9,9.62017905]
[1756253586272,1e-08,4597.0,4596.9,10.37397905]
[1756253586978,1e-08,4597.5,4597.4,2.83514247]
[1756253587146,1e-08,4597.5,4597.4,8.20489389]
[1756253587345,1e-08,4597.5,4597.4,9.04574247]
[1756253587669,0.002,4597.6,4597.5,2.83509516]
[1756253587670,1e-08,4597.6,4597.5,2.83509516]
[1756253587974,1e-08,4597.6,4597.5,3.28229516]
[1756253588162,1e-08,4597.6,4597.5,3.58889516]
[1756253588344,1e-08,4597.6,4597.5,4.85365834]
[1756253588548,1e-08,4597.6,4597.5,4.83190739]
[1756253589180,1e-08,4597.6,4597.5,7.83190739]
[1756253589386,1e-08,4597.8,4597.7,2.83500054]
[1756253589590,1e-08,4597.8,4597.7,8.18354018]
[1756253589895,1e-08,4597.8,4597.7,8.91559018]
[1756253590195,0.022,4598.8,4598.5,2.83462215]
[1756253590358,0.022,4598.8,4598.5,8.18162215]
[1756253590556,0.022,4598.8,4598.5,8.59702215]
[1756253590789,0.022,4598.8,4598.5,9.6741938]
[1756253591287,0.022,4598.8,4598.5,10.1213938]
[1756253593388,0.022,4598.8,4598.5,9.6741938]
[1756253593598,0.022,4598.8,4598.5,10.1213938]
[1756253593806,0.022,4598.8,4598.7,2.83452758]
[1756253593961,0.022,4598.8,4598.7,8.00326499]
[1756253594157,0.022,4598.8,4598.7,5.06231972]
[1756253594470,0.022,4598.8,4598.7,8.73531972]
[1756253595083,1e-08,4598.8,4598.7,8.73531972]
[1756253595395,1e-08,4598.8,4598.7,8.84411972]
[1756253595606,1e-08,4598.8,4598.7,8.93127972]
[1756253597710,0.002,4599.3,4599.2,5.83429118]
[1756253597711,1e-08,4599.3,4599.2,5.83429118]
[1756253597886,1e-08,4599.3,4599.2,9.50729118]
[1756253598059,1e-08,4599.3,4599.2,9.61609118]
[1756253598367,1e-08,4599.3,4599.2,10.36319118]
[1756253598692,1e-08,4599.3,4599.2,11.61694641]
[1756253599189,1e-08,4599.3,4599.2,11.61594641]
[1756253599756,1e-08,4599.3,4599.2,7.94394641]
[1756253599958,1e-08,4599.3,4599.2,11.61594641]
[1756253600464,1e-08,4599.3,4599.2,12.22594641]
[1756253601093,1e-08,4599.3,4599.2,11.78544641]
[1756253604775,1e-08,4599.3,4599.2,11.78444641]
[1756253606304,1e-08,4599.3,4599.2,8.11344641]
[1756253606804,1e-08,4599.3,4599.2,11.78444641]
[1756253607702,1e-08,4599.3,4599.2,12.23164641]
[1756253607876,1e-08,4599.3,4599.2,11.62164641]
[1756253608075,1e-08,4599.3,4599.2,11.70879341]
[1756253609479,1e-08,4599.3,4599.2,11.26159341]
[1756253609678,0.002,4600.6,4600.5,2.83367677]
[1756253609902,0.022,4600.8,4600.7,2.83358228]
[1756253610101,0.022,4600.8,4600.7,6.8246181]
[1756253610303,0.4324,4602.1,4601.5,2.17320438]
[1756253610605,0.4344,4602.3,4601.5,8.63158451]
[1756253610805,0.4344,4602.3,4601.5,9.01695247]
[1756253611196,0.002,4602.3,4601.7,2.17310993]
[1756253611398,0.002,4602.3,4601.7,6.50310993]
[1756253611809,0.3173,4601.8,4601.7,2.83310993]
[1756253612001,0.7497,4601.8,4601.7,7.22528617]
[1756253612199,0.02,4601.8,4601.7,7.22528617]
[1756253612520,0.02,4601.8,4601.7,7.33408617]
[1756253612809,0.3173,4601.8,4601.7,7.33408617]
[1756253613175,0.7497,4601.8,4601.7,2.94190993]
[1756253613417,0.7497,4601.8,4601.7,6.61190993]
[1756253613615,0.02,4601.8,4601.7,6.61190993]
[1756253614022,0.02,4601.8,4601.7,6.91020993]
[1756253614215,0.02,4601.8,4601.7,7.38280993]
[1756253614402,0.02,4601.8,4601.7,8.95598719]
[1756253614587,0.02,4601.8,4601.7,8.48338719]
[1756253614787,0.002,4602.3,4602.2,2.83287384]
[1756253615006,0.002,4602.3,4602.2,6.50287384]
[1756253615210,0.2993,4602.3,4602.2,6.61167384]
[1756253615413,0.2993,4602.3,4602.2,7.49013591]
[1756253615612,0.2993,4602.3,4602.2,3.82013591]
[1756253616090,0.7317,4602.3,4602.2,7.49013591]
[1756253616530,0.002,4602.3,4602.2,7.78843591]
[1756253616830,0.7317,4602.3,4602.2,7.49013591]
[1756253617201,0.7317,4602.3,4602.2,3.82013591]
[1756253617540,0.7317,4602.3,4602.2,0.1088]
[1756253617839,0.7317,4602.3,4602.2,3.669]
[1756253619524,2.90452663,4602.3,4602.2,3.669]
[1756253620306,2.90452663,4602.3,4601.8,3.689]
[1756253620307,5.17301549,4601.9,4601.8,3.689]
[1756253620511,5.90271549,4601.9,4601.8,3.689]
[1756253620711,6.710288,4601.9,4601.8,3.689]
[1756253620909,6.710288,4601.9,4601.8,3.69]
[1756253621224,6.710288,4601.9,4601.8,0.02]
[1756253621748,7.05037176,4601.9,4601.8,0.02]
[1756253622040,6.710288,4601.9,4601.8,0.02]
[1756253624436,2.17334608,4601.2,4601.1,3.671]
[1756253624609,2.90304608,4601.2,4601.1,3.671]
[1756253626435,2.17348779,4600.9,4600.8,0.02]
[1756253626814,5.90318779,4600.9,4600.8,0.02]
[1756253631335,3.7297,4600.9,4600.8,0.02]
[1756253633239,5.90318779,4600.9,4600.8,0.02]
[1756253633419,7.37995338,4600.9,4600.8,0.02]
[1756253634829,5.20646559,4600.9,4600.8,0.02]
[1756253637734,4.77406559,4600.9,4600.8,0.02]
[1756253637935,5.20646559,4600.9,4600.8,0.02]
[1756253638132,0.34017629,4601.1,4600.8,0.02]
[1756253638311,0.4588,4601.4,4600.8,0.3131]
[1756253639449,3.0,4601.0,4600.8,0.3131]
[1756253641356,17.34966357,4600.9,4600.8,0.02]
[1756253641547,23.2497447,4600.9,4600.8,0.02]
[1756253642459,5.5564437,4600.9,4600.8,0.02]
[1756253642654,3.7636,4600.9,4600.8,0.02]
[1756253643447,3.7636,4600.9,4600.8,0.021]
[1756253643836,7.4336,4600.9,4600.8,0.021]
[1756253644759,9.60708779,4600.9,4600.8,0.021]
[1756253647760,9.94726834,4600.9,4600.8,0.021]
[1756253648272,11.16805454,4600.9,4600.8,0.021]